[Event "XLV Badalona Open 2019"]
[Site "Badalona"]
[Date "2019.08.04"]
[Round "3.7"]
[White "Della Morte, Pablo"]
[Black "Fernandez Borrego, Pablo"]
[Result "0-1"]
[ECO "B36"]
[WhiteElo "2289"]
[BlackElo "2408"]
[Annotator "NA"]
[PlyCount "66"]
[EventDate "2019.08.02"]
[EventType "swiss"]
[EventCountry "ESP"]
[SourceTitle "playchess.com"]
[Source "ChessBase"]
[SourceQuality "1"]
[TimeControl "5400+30"]

1. e4 {[%emt 0:00:00]} c5 {[%emt 0:00:00]} 2. Nf3 Nc6 3. d4 {[%emt 0:01:15]} cxd4 {[%emt 0:00:00]} 4. Nxd4 {[%emt 0:01:29]} g6 {[%emt 0:03:28]} 5. c4 {[%emt 0:01:52]} Nf6 {[%emt 0:00:34]} 6. Nc3 {[%emt 0:07:46]} d6 {[%emt 0:04:45]} 7. Nc2 {[%emt 0:00:55]} Bg7 {[%emt 0:04:24]} 8. Be2 {[%emt 0:08:28]} Nd7 {[%emt 0:04:55]} 9. Bd2 {[%emt 0:00:38]} O-O {[%emt 0:00:58]} 10. O-O {[%emt 0:06:32]} Nc5 {[%emt 0:13:26]} 11. f3 {[%emt 0:01:22]} a5 {[%emt 0:02:24]} 12. Be3 {[%emt 0:12:05]} a4 {[%emt 0:05:49]} 13. Qd2 {[%emt 0:07:03]} Qa5 {[%emt 0:02:10]} 14. Na3 {[%emt 0:03:04]} Be6 {[%emt 0:05:05]} 15. Rac1 {[%emt 0:03:05]} Rfc8 {[%emt 0:07:44]} 16. Rfd1 {[%emt 0:06:44]} Qb4 {[%emt 0:04:50]} 17. Bf1 {[%emt 0:04:39]} Nd7 {[%emt 0:01:39]} 18. Qf2 {[%emt 0:12:02]} Na5 {[%emt 0:04:39]} 19. Rd5 {[%emt 0:00:06]} Bxd5 {[%emt 0:00:22]} 20. Nxd5 {[%emt 0:00:19]} Qxb2 {[%emt 0:00:37]} 21. Nxe7+ {[%emt 0:00:23]} Kf8 {[%emt 0:00:22]} 22. Nxc8 Qxa3 {[%emt 0:00:19]} 23. Na7 {[%emt 0:00:44]} Rxa7 {[%emt 0:05:29]} 24. Qd2 {[%emt 0:01:06]} b6 {[%emt 0:02:02]} 25. c5 {[%emt 0:04:01]} dxc5 {[%emt 0:03:24]} 26. Bf4 {[%emt 0:03:54]} Kg8 {[%emt 0:02:05]} 27. Bb5 {[%emt 0:03:44]} Qb2 {[%emt 0:02:24]} 28. Bxa4 Bd4+ {[%emt 0:00:26]} 29. Kf1 {[%emt 0:00:45]} Qxd2 {[%emt 0:01:08]} 30. Bxd2 {[%emt 0:00:00]} Ne5 {[%emt 0:00:24]} 31. Bb5 {[%emt 0:03:35]} Nb7 {[%emt 0:00:50]} 32. f4 {[%emt 0:00:26]} Rxa2 {[%emt 0:00:30]} 33. Ke2 Nd6 0-1

[Event "XLV Badalona Open 2019"]
[Site "Badalona"]
[Date "2019.08.04"]
[Round "3.8"]
[White "Walter Travella, German"]
[Black "Alvaro Hermosa, Ramon"]
[Result "*"]
[ECO "A03"]
[WhiteElo "1940"]
[BlackElo "1627"]
[Annotator "NA"]
[PlyCount "39"]
[EventDate "2019.08.02"]
[EventType "swiss"]
[EventCountry "ESP"]
[SourceTitle "playchess.com"]
[Source "ChessBase"]
[SourceQuality "1"]
[TimeControl "5400+30"]

1. f4 {[%emt 0:03:05]} d5 {[%emt 0:00:21]} 2. Nf3 {[%emt 0:01:03]} Nf6 {[%emt 0:00:49]} 3. e3 g6 4. b3 {[%emt 0:02:28]} Bg7 {[%emt 0:01:25]} 5. Bb2 {[%emt 0:00:13]} O-O 6. Be2 {[%emt 0:00:00]} c5 {[%emt 0:03:11]} 7. O-O {[%emt 0:01:00]} Nc6 {[%emt 0:00:20]} 8. d3 {[%emt 0:02:15]} d4 9. e4 {[%emt 0:00:19]} Ng4 {[%emt 0:07:34]} 10. Bc1 {[%emt 0:01:40]} f5 {[%emt 0:08:17]} 11. e5 {[%emt 0:01:14]} Nb4 {[%emt 0:02:11]} 12. h3 {[%emt 0:01:13]} Nh6 {[%emt 0:02:25]} 13. c4 {[%emt 0:06:17]} Qc7 {[%emt 0:00:11]} 14. a3 {[%emt 0:01:22]} Nc6 {[%emt 0:00:58]} 15. b4 {[%emt 0:01:47]} b6 {[%emt 0:04:09]} 16. Qe1 {[%emt 0:02:28]} Nd8 {[%emt 0:01:31]} 17. Bd2 {[%emt 0:01:54]} a5 {[%emt 0:03:10]} 18. b5 Bb7 {[%emt 0:02:20]} 19. Qh4 {[%emt 0:04:35]} Ne6 20. Ra2 *

[Event "XLV Badalona Open 2019"]
[Site "Badalona"]
[Date "2019.08.04"]
[Round "3.9"]
[White "Murat Huertas, Eduard"]
[Black "Moncada Correa, Sara"]
[Result "0-1"]
[ECO "A11"]
[WhiteElo "1799"]
[BlackElo "1909"]
[Annotator "NA"]
[PlyCount "62"]
[EventDate "2019.08.02"]
[EventType "swiss"]
[EventCountry "ESP"]
[SourceTitle "playchess.com"]
[Source "ChessBase"]
[SourceQuality "1"]
[TimeControl "5400+30"]

1. c4 {[%emt 0:02:57]} c6 {[%emt 0:00:09]} 2. g3 {[%emt 0:01:02]} d5 {[%emt 0:00:20]} 3. Bg2 {[%emt 0:00:30]} Nf6 {[%emt 0:01:22]} 4. Nf3 {[%emt 0:06:25]} dxc4 {[%emt 0:03:15]} 5. a4 {[%emt 0:01:29]} Bf5 {[%emt 0:08:10]} 6. Na3 {[%emt 0:01:39]} Qd5 {[%emt 0:02:19]} 7. O-O {[%emt 0:03:48]} Qc5 {[%emt 0:00:59]} 8. b4 {[%emt 0:01:40]} cxb3 {[%emt 0:02:05]} 9. Qxb3 {[%emt 0:08:50]} Qb6 {[%emt 0:04:54]} 10. Qc4 {[%emt 0:00:49]} Nbd7 {[%emt 0:07:21]} 11. d3 {[%emt 0:03:34]} Qd8 {[%emt 0:03:23]} 12. Qb3 {[%emt 0:05:26]} Qc7 {[%emt 0:00:59]} 13. Bf4 {[%emt 0:03:52]} e5 {[%emt 0:00:19]} 14. Nxe5 {[%emt 0:01:20]} Nxe5 {[%emt 0:13:18]} 15. Nc4 {[%emt 0:08:25]} Bd6 {[%emt 0:00:13]} 16. Nxd6+ {[%emt 0:00:30]} Qxd6 {[%emt 0:01:01]} 17. d4 {[%emt 0:00:52]} Qxd4 {[%emt 0:01:11]} 18. Rad1 {[%emt 0:03:03]} Qc5 {[%emt 0:00:57]} 19. Rc1 {[%emt 0:00:23]} Qe7 20. Bxe5 {[%emt 0:00:03]} Qxe5 {[%emt 0:00:41]} 21. Qxb7 {[%emt 0:03:40]} O-O {[%emt 0:10:05]} 22. Bxc6 {[%emt 0:00:50]} Rab8 {[%emt 0:00:49]} 23. Qxa7 {[%emt 0:02:33]} Qxe2 {[%emt 0:03:57]} 24. a5 {[%emt 0:03:37]} Be4 {[%emt 0:00:37]} 25. Rce1 {[%emt 0:00:43]} Qf3 {[%emt 0:00:30]} 26. Bxe4 {[%emt 0:00:30]} Nxe4 {[%emt 0:00:00]} 27. Re3 {[%emt 0:05:30]} Qf5 {[%emt 0:01:34]} 28. Qd4 Ng5 {[%emt 0:00:47]} 29. Kg2 {[%emt 0:02:51]} Qxa5 {[%emt 0:01:19]} 30. Ra1 {[%emt 0:07:14]} Qb5 {[%emt 0:00:31]} 31. Rc3 Qb7+ {Rd3} 0-1

[Event "XLV Badalona Open 2019"]
[Site "Badalona"]
[Date "2019.08.04"]
[Round "3.10"]
[White "Bedoya Rosales, Luis"]
[Black "Costa Trave, Jaume"]
[Result "1-0"]
[ECO "C07"]
[WhiteElo "1924"]
[BlackElo "1856"]
[Annotator "NA"]
[PlyCount "123"]
[EventDate "2019.08.02"]
[EventType "swiss"]
[EventCountry "ESP"]
[SourceTitle "playchess.com"]
[Source "ChessBase"]
[SourceQuality "1"]
[TimeControl "5400+30"]

1. e4 e6 2. d4 d5 3. Nd2 c5 4. Ngf3 Nc6 5. Bb5 a6 6. exd5 Qxd5 7. c4 Qd8 8. Bxc6+ bxc6 9. dxc5 Bxc5 10. O-O Nf6 11. Qc2 Be7 12. Ne4 c5 13. Bf4 O-O 14. Nfg5 g6 15. Rad1 Qb6 16. Qc3 Nh5 17. Bd6 Ra7 18. Bxe7 Rxe7 19. Nf6+ Nxf6 20. Qxf6 Qc7 21. Rd3 e5 22. Re1 Bf5 23. Rd5 h6 24. Ne4 Bxe4 25. Rxe4 Re6 26. Qh4 g5 27. Qg3 Rfe8 28. h4 f6 29. Qd3 R6e7 30. b3 Kg7 31. h5 Rf7 32. Rd6 Kf8 33. Re2 e4 34. Qd1 a5 35. Red2 Qe7 36. R2d5 e3 37. fxe3 Qxe3+ 38. Kh1 Qg3 39. Rd8 Rfe7 40. Rxe8+ Rxe8 41. Rd8 Qe5 42. Qd6+ Qe7 43. Qxe7+ Kxe7 44. Rd5 Rc8 45. g4 Ke6 46. Kg2 a4 47. Kf3 axb3 48. axb3 Rb8 49. Ke4 Rxb3 50. Rxc5 Kd6 51. Rb5 Rc3 52. c5+ Kc6 53. Rb6+ Kxc5 54. Rxf6 Rc4+ 55. Kf5 Rf4+ 56. Kg6 Rxg4 57. Kxh6 Kd5 58. Kg6 Ke5 59. h6 Rh4 60. Rf5+ Ke6 61. Rxg5 Ke7 62. h7 1-0

[Event "XLV Badalona Open 2019"]
[Site "Badalona"]
[Date "2019.08.05"]
[Round "4.1"]
[White "Lorenzo De La Riva, Lazaro"]
[Black "Sturt, Raven"]
[Result "0-1"]
[ECO "C96"]
[WhiteElo "2373"]
[BlackElo "2429"]
[Annotator "RC"]
[PlyCount "105"]
[EventDate "2019.08.02"]
[EventType "swiss"]
[EventCountry "ESP"]
[TimeControl "5400+30"]

1. e4 {[%emt 0:00:19]} e5 {[%emt 0:00:00]} 2. Nf3 {[%emt 0:00:43]} Nc6 {[%emt 0:00:00]} 3. Bb5 {[%emt 0:00:17]} a6 {[%emt 0:00:00]} 4. Ba4 {[%emt 0:00:16]} Nf6 {[%emt 0:00:00]} 5. O-O {[%emt 0:00:45]} Be7 6. Re1 {[%emt 0:00:54]} b5 {[%emt 0:00:00]} 7. Bb3 {[%emt 0:00:05]} d6 {[%emt 0:00:00]} 8. c3 {[%emt 0:00:16]} O-O {[%emt 0:00:00]} 9. h3 {[%emt 0:00:05]} Na5 10. Bc2 {[%emt 0:00:09]} c5 {[%emt 0:00:04]} 11. d4 {[%emt 0:00:10]} Nd7 {[%emt 0:04:28]} 12. Nbd2 exd4 {[%emt 0:00:05]} 13. cxd4 {[%emt 0:03:31]} Nc6 {[%emt 0:04:12]} 14. a4 {[%emt 0:01:58]} bxa4 {[%emt 0:01:32]} 15. Bxa4 Nxd4 16. Nxd4 {[%emt 0:06:10]} cxd4 {[%emt 0:00:33]} 17. Nf3 Nc5 {[%emt 0:06:40]} 18. Nxd4 {[%emt 0:02:47]} Bf6 {[%emt 0:06:12]} 19. Bc6 {[%emt 0:23:03]} Rb8 {[%emt 0:05:52]} 20. Bd5 {[%emt 0:08:17]} Bb7 {[%emt 0:14:18]} 21. Nf5 {[%emt 0:11:43]} Be5 {[%emt 0:02:01]} 22. Ra3 {[%emt 0:09:23]} Qb6 {[%emt 0:07:30]} 23. Ne3 {[%emt 0:12:02]} Qb5 {[%emt 0:12:29]} 24. Ng4 Bxb2 {[%emt 0:01:03]} 25. Rg3 {[%emt 0:13:39]} Kh8 {[%emt 0:02:03]} 26. Bf4 {[%emt 0:04:16]} Rbd8 27. Bg5 {[%emt 0:00:24]} f6 {[%emt 0:03:43]} 28. Bf4 Be5 29. Bxe5 {[%emt 0:01:53]} dxe5 {[%emt 0:00:30]} 30. Qf3 {[%emt 0:00:39]} Qb4 {[%emt 0:07:57]} 31. Ra1 {[%emt 0:00:02]} Nxe4 {[%emt 0:04:18]} 32. Qxe4 Qxe4 {[%emt 0:02:36]} 33. Bxe4 {[%emt 0:00:32]} Bxe4 34. Rxa6 {[%emt 0:00:00]} Rd1+ {[%emt 0:00:26]} 35. Kh2 {[%emt 0:00:41]} Rc8 {[%emt 0:00:34]} 36. Re3 {[%emt 0:00:32]} Bg6 {[%emt 0:00:29]} 37. f3 {[%emt 0:00:39]} Rd2 {[%emt 0:00:44]} 38. Rea3 {[%emt 0:00:37]} Rdd8 {[%emt 0:00:32]} 39. Ne3 {[%emt 0:00:29]} h5 {[%emt 0:00:30]} 40. h4 {[%emt 0:00:37]} Kh7 41. Ra7 {[%emt 0:00:11]} Kh6 {[%emt 0:01:03]} 42. g4 {[%emt 0:01:12]} Rc1 {[%emt 0:01:24]} 43. Ra2 {[%emt 0:00:26]} Rd3 {[%emt 0:04:20]} 44. R7a3 {[%emt 0:00:20]} hxg4 {[%emt 0:00:24]} 45. fxg4 {[%emt 0:00:21]} Rd4 {[%emt 0:00:46]} 46. h5 {[%emt 0:01:01]} Be4 {[%emt 0:02:23]} 47. Ra7 {[%emt 0:01:21]} Re1 {[%emt 0:00:45]} 48. R7a3 Bd3 49. Ng2 {[%emt 0:00:52]} Ree4 {[%emt 0:00:31]} 50. Rd2 {[%emt 0:00:13]} Be2 51. Rb2 {[%emt 0:00:40]} Bxg4 {[%emt 0:00:27]} 52. Nh4 Kxh5 53. Rb1 0-1

[Event "XLV Badalona Open 2019"]
[Site "Badalona"]
[Date "2019.08.05"]
[Round "4.8"]
[White "Moncada Correa, Sara"]
[Black "Casares Bonals, Ainhoa"]
[Result "1/2-1/2"]
[ECO "E16"]
[WhiteElo "1909"]
[BlackElo "1787"]
[Annotator "NA"]
[PlyCount "72"]
[EventDate "2019.08.02"]
[EventType "swiss"]
[EventCountry "ESP"]
[SourceTitle "playchess.com"]
[Source "ChessBase"]
[SourceQuality "1"]
[TimeControl "5400+30"]

1. d4 Nf6 2. Nf3 {[%emt 0:01:28]} e6 {[%emt 0:00:00]} 3. g3 {[%emt 0:00:44]} b6 4. c4 {[%emt 0:00:24]} Bb7 {[%emt 0:01:26]} 5. Bg2 {[%emt 0:01:38]} Bb4+ {[%emt 0:03:28]} 6. Bd2 {[%emt 0:01:45]} Qe7 {[%emt 0:01:11]} 7. Nc3 {[%emt 0:00:34]} O-O {[%emt 0:02:10]} 8. O-O {[%emt 0:09:13]} c5 {[%emt 0:05:04]} 9. Qc2 {[%emt 0:06:15]} d6 {[%emt 0:03:50]} 10. Rfd1 {[%emt 0:06:24]} Nbd7 {[%emt 0:02:40]} 11. Rac1 {[%emt 0:09:56]} Rac8 {[%emt 0:07:15]} 12. Qb3 {[%emt 0:01:28]} Bxc3 {[%emt 0:02:03]} 13. Bxc3 {[%emt 0:03:14]} Ne4 {[%emt 0:04:03]} 14. Qa3 {[%emt 0:02:57]} a6 {[%emt 0:04:53]} 15. Qb3 {[%emt 0:00:46]} Nxc3 16. Rxc3 {[%emt 0:01:36]} Rb8 {[%emt 0:03:23]} 17. Rcd3 b5 {[%emt 0:01:37]} 18. cxb5 {[%emt 0:05:03]} axb5 {[%emt 0:05:11]} 19. R3d2 {[%emt 0:02:43]} c4 {[%emt 0:01:42]} 20. Qc2 {[%emt 0:00:53]} f5 {[%emt 0:02:31]} 21. Ne1 {[%emt 0:00:38]} Nf6 22. Bxb7 {[%emt 0:00:07]} Qxb7 {[%emt 0:01:37]} 23. e3 {[%emt 0:00:48]} g5 {[%emt 0:08:23]} 24. Re2 {[%emt 0:02:14]} Rbc8 {[%emt 0:02:15]} 25. a3 {[%emt 0:02:15]} Rc7 {[%emt 0:01:16]} 26. Rc1 {[%emt 0:02:43]} Rfc8 {[%emt 0:01:13]} 27. Qc3 {[%emt 0:02:15]} Nd5 28. Qc2 {[%emt 0:00:25]} c3 {[%emt 0:01:28]} 29. Qb3 cxb2 {[%emt 0:01:37]} 30. Rxc7 {[%emt 0:00:43]} Rxc7 31. Rxb2 {[%emt 0:01:39]} Rc1 {[%emt 0:00:52]} 32. Rb1 {[%emt 0:00:04]} Rxb1 {[%emt 0:03:17]} 33. Qxb1 {[%emt 0:04:32]} Qc6 {[%emt 0:03:07]} 34. Qc2 {[%emt 0:05:08]} Nc3 {[%emt 0:01:41]} 35. Nf3 {[%emt 0:03:14]} Qc4 {[%emt 0:05:49]} 36. Ne1 {[%emt 0:01:10]} Qc7 1/2-1/2

[Event "XLV Badalona Open 2019"]
[Site "Badalona"]
[Date "2019.08.05"]
[Round "4.9"]
[White "Fernandez Egea, Andres"]
[Black "Bedoya Rosales, Luis"]
[Result "0-1"]
[ECO "B44"]
[WhiteElo "1838"]
[BlackElo "1924"]
[Annotator "NA"]
[PlyCount "102"]
[EventDate "2019.08.02"]
[EventType "swiss"]
[EventCountry "ESP"]
[SourceTitle "playchess.com"]
[Source "ChessBase"]
[SourceQuality "1"]
[TimeControl "5400+30"]

1. e4 {[%emt 0:00:00]} c5 {[%emt 0:02:01]} 2. Nf3 {[%emt 0:00:00]} e6 {[%emt 0:00:07]} 3. d4 {[%emt 0:00:06]} cxd4 {[%emt 0:00:10]} 4. Nxd4 {[%emt 0:04:45]} Nc6 {[%emt 0:00:16]} 5. c4 {[%emt 0:02:22]} Qc7 {[%emt 0:00:07]} 6. Nc3 {[%emt 0:00:30]} a6 {[%emt 0:01:38]} 7. Nxc6 {[%emt 0:05:12]} bxc6 {[%emt 0:01:56]} 8. Bd3 {[%emt 0:00:56]} Nf6 {[%emt 0:30:15]} 9. O-O {[%emt 0:06:30]} Bd6 {[%emt 0:02:16]} 10. f4 {[%emt 0:00:34]} Bc5+ {[%emt 0:00:49]} 11. Kh1 {[%emt 0:05:35]} d6 {[%emt 0:02:01]} 12. Qe2 {[%emt 0:12:14]} Bd4 {[%emt 0:15:03]} 13. Be3 {[%emt 0:00:08]} Bxe3 {[%emt 0:02:23]} 14. Qxe3 {[%emt 0:06:20]} e5 {[%emt 0:00:32]} 15. fxe5 {[%emt 0:00:54]} Ng4 {[%emt 0:00:23]} 16. Qg5 {[%emt 0:13:29]} O-O {[%emt 0:00:51]} 17. Bc2 {[%emt 0:03:26]} Nxe5 {[%emt 0:08:32]} 18. b3 {[%emt 0:03:58]} f6 {[%emt 0:03:05]} 19. Qe3 {[%emt 0:01:00]} Qa7 {[%emt 0:01:53]} 20. Qg3 {[%emt 0:00:30]} Bg4 {[%emt 0:00:30]} 21. h3 {[%emt 0:04:59]} Bh5 {[%emt 0:00:40]} 22. Rf5 {[%emt 0:00:09]} Bg6 {[%emt 0:06:34]} 23. Rf2 {[%emt 0:04:00]} Rfe8 {[%emt 0:00:31]} 24. Rd1 {[%emt 0:05:04]} Rad8 {[%emt 0:03:23]} 25. Ne2 {[%emt 0:00:22]} Bh5 {[%emt 0:00:17]} 26. Rd2 {[%emt 0:01:07]} Bxe2 {[%emt 0:01:57]} 27. Rfxe2 {[%emt 0:03:31]} a5 {[%emt 0:02:45]} 28. Rf2 {[%emt 0:02:42]} Kh8 {[%emt 0:08:30]} 29. Rf5 {[%emt 0:00:41]} Nf7 {[%emt 0:01:11]} 30. Qc3 {[%emt 0:04:59]} Re5 {[%emt 0:01:16]} 31. Rdf2 {[%emt 0:03:44]} Qc5 {[%emt 0:01:48]} 32. h4 {[%emt 0:01:06]} Rde8 {[%emt 0:01:37]} 33. R5f4 {[%emt 0:03:02]} Nd8 {[%emt 0:00:39]} 34. Rd2 {[%emt 0:00:50]} Ne6 {[%emt 0:00:31]} 35. Rf3 {[%emt 0:01:25]} Nd8 {[%emt 0:00:30]} 36. Rf4 {[%emt 0:00:55]} d5 {[%emt 0:00:31]} 37. Qd3 {[%emt 0:00:36]} d4 {[%emt 0:00:18]} 38. Bd1 {[%emt 0:00:36]} Ne6 {[%emt 0:00:29]} 39. Rg4 {[%emt 0:00:10]} h5 {[%emt 0:00:43]} 40. Rg3 {[%emt 0:00:46]} Qb4 {[%emt 0:00:30]} 41. Bf3 {[%emt 0:00:27]} c5 {[%emt 0:00:23]} 42. Qe2 {[%emt 0:00:20]} Nf4 {[%emt 0:00:35]} 43. Qd1 {[%emt 0:00:56]} Ra8 {[%emt 0:00:33]} 44. Qc1 {[%emt 0:00:20]} Ne6 {[%emt 0:00:30]} 45. Qd1 {[%emt 0:00:18]} a4 {[%emt 0:00:29]} 46. Bxh5 {[%emt 0:00:13]} axb3 {[%emt 0:00:30]} 47. axb3 {[%emt 0:00:47]} Nf4 {[%emt 0:00:31]} 48. Bf7 {[%emt 0:00:23]} Rxe4 {[%emt 0:00:29]} 49. Qg4 {[%emt 0:00:12]} g5 {[%emt 0:00:31]} 50. hxg5 {[%emt 0:01:06]} Ra1+ {[%emt 0:00:30]} 51. Kh2 Ree1 0-1

[Event "XLV Badalona Open 2019"]
[Site "Badalona"]
[Date "2019.08.05"]
[Round "4.10"]
[White "Korobitsyna, Olesya"]
[Black "Fabregas Fontanet, Antonio"]
[Result "1-0"]
[ECO "E91"]
[WhiteElo "1609"]
[BlackElo "1942"]
[Annotator "NA"]
[PlyCount "63"]
[EventDate "2019.08.02"]
[EventType "swiss"]
[EventCountry "ESP"]
[SourceTitle "playchess.com"]
[Source "ChessBase"]
[SourceQuality "1"]
[TimeControl "5400+30"]

1. d4 Nf6 2. Nf3 d6 3. c4 g6 4. Nc3 Bg7 5. e4 O-O 6. Be2 b6 7. O-O Bb7 8. Qc2 Nbd7 9. Ne1 e5 10. d5 c6 11. Be3 cxd5 12. cxd5 Rc8 13. Qd2 Nc5 14. f3 a6 15. Nd3 Nfd7 16. b4 Nxd3 17. Bxd3 f5 18. Rac1 f4 19. Bf2 g5 20. Qe2 Ra8 21. Rc2 a5 22. Nb5 Rf6 23. Nc7 Rc8 24. Ne6 Qe8 25. bxa5 bxa5 26. Rb1 Ba8 27. Ba6 Rxc2 28. Qxc2 Bf8 29. Qc8 Qf7 30. Qxa8 g4 31. Rb7 gxf3 32. Nxf8 1-0

[Event "XLV Badalona Open 2019"]
[Site "Badalona"]
[Date "2019.08.06"]
[Round "5.1"]
[White "Sturt, Raven"]
[Black "Hernandez, Cristian Andres"]
[Result "1-0"]
[ECO "B90"]
[WhiteElo "2429"]
[BlackElo "2355"]
[Annotator "NA"]
[PlyCount "83"]
[EventDate "2019.08.02"]
[EventType "swiss"]
[EventCountry "ESP"]
[SourceTitle "playchess.com"]
[Source "ChessBase"]
[SourceQuality "1"]
[TimeControl "5400+30"]

1. e4 {[%emt 0:09:24]} c5 {[%emt 0:00:00]} 2. Nf3 {[%emt 0:00:11]} d6 {[%emt 0:00:00]} 3. d4 {[%emt 0:00:03]} cxd4 {[%emt 0:00:00]} 4. Nxd4 {[%emt 0:00:02]} Nf6 {[%emt 0:00:03]} 5. Nc3 {[%emt 0:00:04]} a6 {[%emt 0:00:06]} 6. h3 {[%emt 0:00:04]} e6 {[%emt 0:01:45]} 7. g4 {[%emt 0:00:04]} h6 {[%emt 0:00:03]} 8. Bg2 {[%emt 0:00:05]} g5 9. Be3 {[%emt 0:11:48]} Nbd7 {[%emt 0:00:18]} 10. Qd2 {[%emt 0:03:02]} Ne5 {[%emt 0:00:21]} 11. b3 b5 {[%emt 0:12:07]} 12. O-O-O {[%emt 0:07:20]} Bb7 {[%emt 0:00:34]} 13. f4 {[%emt 0:01:55]} gxf4 {[%emt 0:00:04]} 14. Bxf4 {[%emt 0:00:03]} Rc8 {[%emt 0:04:49]} 15. Rhe1 {[%emt 0:14:04]} Qa5 {[%emt 0:20:35]} 16. Re3 {[%emt 0:05:23]} b4 {[%emt 0:09:01]} 17. Na4 {[%emt 0:07:16]} Nfd7 {[%emt 0:00:59]} 18. a3 Nc4 19. bxc4 {[%emt 0:08:49]} Qxa4 {[%emt 0:00:35]} 20. Nf5 bxa3 {[%emt 0:09:04]} 21. Nxd6+ {[%emt 0:03:55]} Bxd6 {[%emt 0:00:54]} 22. Bxd6 {[%emt 0:01:09]} a2 {[%emt 0:01:57]} 23. Kb2 {[%emt 0:02:33]} Rxc4 {[%emt 0:22:28]} 24. Rb3 {[%emt 0:04:32]} Rd4 25. Qc3 {[%emt 0:00:10]} Rxd6 {[%emt 0:03:15]} 26. Qxh8+ {[%emt 0:00:52]} Ke7 {[%emt 0:02:13]} 27. Ra1 {[%emt 0:02:03]} Nb6 {[%emt 0:05:08]} 28. Bf1 {[%emt 0:01:23]} Qxe4 29. Bd3 Na4+ {[%emt 0:04:32]} 30. Ka3 {[%emt 0:00:48]} Qc6 31. Rf1 {[%emt 0:08:17]} a1=Q+ {[%emt 0:01:57]} 32. Qxa1 {[%emt 0:00:16]} Qc5+ {[%emt 0:01:55]} 33. Ka2 Rd7 {[%emt 0:00:04]} 34. Qf6+ {[%emt 0:02:00]} Ke8 {[%emt 0:01:35]} 35. Bg6 {[%emt 0:02:06]} Qe7 {[%emt 0:00:07]} 36. Bxf7+ {[%emt 0:03:16]} Kd8 37. Bxe6 Qxf6 {[%emt 0:01:27]} 38. Rxf6 {[%emt 0:00:31]} Re7 {[%emt 0:00:00]} 39. Rd3+ {[%emt 0:00:30]} Kc7 {[%emt 0:00:10]} 40. Rxh6 {[%emt 0:00:21]} Nc5 {[%emt 0:00:32]} 41. Rc3 {[%emt 0:00:22]} Kb6 42. Bc8+ 1-0

[Event "XLV Badalona Open 2019"]
[Site "Badalona"]
[Date "2019.08.06"]
[Round "5.2"]
[White "Rojas Keim, Luis"]
[Black "Oliva Castaneda, Kevel"]
[Result "1/2-1/2"]
[ECO "B53"]
[WhiteElo "2338"]
[BlackElo "2467"]
[Annotator "ChessBase"]
[PlyCount "72"]
[EventDate "2019.08.02"]
[EventType "swiss"]
[EventCountry "ESP"]
[SourceTitle "playchess.com"]
[Source "ChessBase"]
[SourceQuality "1"]
[TimeControl "5400+30"]

1. e4 {[%emt 0:00:00]} c5 2. Nf3 d6 {[%emt 0:00:00]} 3. d4 {[%emt 0:00:00]} cxd4 {[%emt 0:00:00]} 4. Qxd4 {[%emt 0:00:00]} Nf6 {[%emt 0:00:02]} 5. Bg5 {[%emt 0:00:00]} Nc6 6. Bb5 {[%emt 0:00:13]} Qa5+ {[%emt 0:02:55]} 7. Nc3 Qxb5 {[%emt 0:00:06]} 8. Nxb5 {[%emt 0:00:33]} Nxd4 {[%emt 0:00:24]} 9. Nfxd4 {[%emt 0:03:55]} Kd8 {[%emt 0:04:42]} 10. f3 {[%emt 0:00:29]} a6 {[%emt 0:01:58]} 11. Nc3 {[%emt 0:00:29]} e6 {[%emt 0:01:38]} 12. O-O-O {[%emt 0:07:19]} Kc7 {[%emt 0:04:01]} 13. Nb3 {[%emt 0:03:11]} Be7 {[%emt 0:00:57]} 14. Bf4 {[%emt 0:07:57]} Nd7 {[%emt 0:00:19]} 15. Rd2 {[%emt 0:01:47]} Ne5 {[%emt 0:09:38]} 16. Rhd1 {[%emt 0:14:45]} Rd8 {[%emt 0:02:07]} 17. Bg3 {[%emt 0:03:27]} b5 {[%emt 0:09:07]} 18. Na5 {[%emt 0:08:53]} h5 {[%emt 0:05:08]} 19. a4 h4 {[%emt 0:00:05]} 20. Bxe5 {[%emt 0:02:22]} dxe5 {[%emt 0:00:05]} 21. Rxd8 {[%emt 0:00:26]} Bxd8 22. axb5 {[%emt 0:00:05]} Bg5+ {[%emt 0:00:36]} 23. Kb1 axb5 24. b4 {[%emt 0:07:54]} Bd7 {[%emt 0:00:36]} 25. Kb2 {[%emt 0:00:20]} h3 {[%emt 0:02:21]} 26. g3 {[%emt 0:02:10]} Be3 {[%emt 0:02:15]} 27. Ne2 {[%emt 0:02:00]} Bb6 {[%emt 0:04:12]} 28. Nb3 {[%emt 0:04:54]} f5 {[%emt 0:00:47]} 29. exf5 {[%emt 0:01:26]} exf5 30. Nc5 {[%emt 0:00:02]} Bxc5 {[%emt 0:06:02]} 31. bxc5 {[%emt 0:04:59]} Bc6 {[%emt 0:03:00]} 32. Ng1 {[%emt 0:02:48]} Ra4 {[%emt 0:01:52]} 33. Re1 {[%emt 0:00:14]} Rb4+ {[%emt 0:01:15]} 34. Kc1 {[%emt 0:00:12]} Ra4 35. Kb2 {[%emt 0:00:06]} Rb4+ {[%emt 0:04:19]} 36. Kc1 Ra4 1/2-1/2

[Event "XLV Badalona Open 2019"]
[Site "Badalona"]
[Date "2019.08.06"]
[Round "5.3"]
[White "Cu Hor, Winston Darwin"]
[Black "Perez Mitjans, Orelvis"]
[Result "1/2-1/2"]
[ECO "A06"]
[WhiteElo "2335"]
[BlackElo "2416"]
[Annotator "NA"]
[PlyCount "60"]
[EventDate "2019.08.02"]
[EventType "swiss"]
[EventCountry "ESP"]
[SourceTitle "playchess.com"]
[Source "ChessBase"]
[SourceQuality "1"]
[TimeControl "5400+30"]

1. Nf3 {[%emt 0:02:44]} g6 {[%emt 0:00:00]} 2. g3 {[%emt 0:00:30]} Bg7 {[%emt 0:00:00]} 3. Bg2 {[%emt 0:00:00]} e5 {[%emt 0:00:00]} 4. d3 {[%emt 0:00:16]} d5 {[%emt 0:00:09]} 5. O-O {[%emt 0:00:43]} Ne7 {[%emt 0:00:51]} 6. c4 O-O {[%emt 0:00:05]} 7. cxd5 {[%emt 0:01:13]} Nxd5 {[%emt 0:03:27]} 8. Nc3 {[%emt 0:01:42]} Ne7 {[%emt 0:00:28]} 9. Bd2 {[%emt 0:04:00]} Nbc6 {[%emt 0:12:30]} 10. a3 {[%emt 0:02:30]} a5 {[%emt 0:03:27]} 11. Rb1 {[%emt 0:01:54]} h6 {[%emt 0:00:04]} 12. b4 {[%emt 0:00:08]} axb4 {[%emt 0:09:05]} 13. axb4 {[%emt 0:02:58]} Nd4 {[%emt 0:02:01]} 14. b5 {[%emt 0:04:24]} Be6 {[%emt 0:00:05]} 15. Nxd4 {[%emt 0:00:30]} exd4 {[%emt 0:05:11]} 16. Ne4 {[%emt 0:04:27]} b6 {[%emt 0:00:26]} 17. Bb4 {[%emt 0:03:03]} Re8 {[%emt 0:01:01]} 18. Bxe7 {[%emt 0:03:51]} Rxe7 {[%emt 0:00:00]} 19. Ra1 Rxa1 {[%emt 0:06:12]} 20. Qxa1 {[%emt 0:01:09]} Bd5 {[%emt 0:05:44]} 21. Bf3 f5 {[%emt 0:00:06]} 22. Nd2 {[%emt 0:06:26]} Bxf3 {[%emt 0:06:18]} 23. exf3 {[%emt 0:08:07]} Qd5 {[%emt 0:15:40]} 24. Qb2 {[%emt 0:03:29]} Kh7 {[%emt 0:08:55]} 25. Rc1 {[%emt 0:09:26]} h5 {[%emt 0:07:41]} 26. Qb4 {[%emt 0:07:00]} Bf6 {[%emt 0:02:48]} 27. f4 {[%emt 0:00:41]} h4 {[%emt 0:00:08]} 28. Qc4 {[%emt 0:01:44]} Qa8 {[%emt 0:00:13]} 29. Qc6 {[%emt 0:04:52]} Qa3 {[%emt 0:00:11]} 30. Kg2 {[%emt 0:02:49]} Kg7 {[%emt 0:00:31]} 1/2-1/2